[Event "Saint Louis Norm Congress-GM 2022"]
[Site "Saint Louis"]
[Date "2022.05.23"]
[Round "8.3"]
[White "Repka, Christopher"]
[Black "Daggupati, Balaji"]
[Result "1/2-1/2"]
[ECO "D24"]
[WhiteElo "2524"]
[BlackElo "2486"]
[Annotator "TA"]
[PlyCount "28"]
[EventDate "2022.05.20"]
[EventType "tourn"]
[EventCountry "USA"]
[SourceTitle "playchess.com"]
[Source "ChessBase"]
[SourceQuality "1"]
[TimeControl "5400+30"]

{[%evp 10,28,-33,-46,8,-25,-23,-70,-63,-64,-28,-97,-91,-89,-17,-37,-16,-20,-19,-22,-20]} 1. d4 {[%emt 0:02:35]} d5 {[%emt 0:00:04]} 2. Nf3 {[%emt 0:00:24]} Nf6 {[%emt 0:00:05]} 3. c4 {[%emt 0:00:47]} dxc4 {[%emt 0:00:06]} 4. Nc3 {[%emt 0:01:56]} a6 {[%emt 0:01:22]} 5. a4 {[%emt 0:01:06]} Nc6 {[%emt 0:00:18]} 6. e4 {[%emt 0:02:16]} Na5 {[%emt 0:01:51] D24: Queen's Gambit Accepted: 3 Nf3 Nf6 4 Nc3.} (6... Bg4 $15) 7. Be3 {[%emt 0:00:26]} e6 {[%emt 0:03:01]} 8. Be2 {[%emt 0:01:03]} (8. Ne5 $11 {might be stronger.}) 8... Bb4 $15 {[%emt 0:01:29] Black is slightly better.} 9. Qc2 {[%emt 0:00:13] [#]} b6 $146 {[%emt 0:05:24]} ({Of course not} 9... Nb3 10. Ra2 $11) ({Predecessor:} 9... b5 10. O-O Nb3 11. Rad1 Bxc3 12. bxc3 Bb7 13. e5 Nd5 14. Bg5 Qc8 15. Nd2 h6 {½-½ (25) Husek,Z (2011)-Vojtko,M (1996) Slovakia 2014}) 10. Ne5 {[%emt 0:11:20]} (10. Nd2 $11 {keeps the balance.}) 10... Bb7 $17 {[%emt 0:15:23] ...Bxe4 is the strong threat.} (10... Nb3 $6 11. Rd1 $11) 11. f3 {[%emt 0:03:01] [#]} c5 {[%emt 0:01:02]} ({But not} 11... Nb3 $6 12. Rd1 $15) (11... b5 $1 $17 {[%cal Oc7c5] Threatens to win with ...c5!} 12. axb5 axb5) 12. dxc5 $1 $11 {[%emt 0:07:05]} Qc7 {[%emt 0:02:33]} 13. Nxc4 {[%emt 0:00:05]} Nxc4 {[%emt 0:00:12]} 14. Bxc4 {[%emt 0:00:04]} Bxc5 {[%emt 0:00:26] Weighted Error Value: White=0.24 (precise) /Black=0.24 (precise)} 1/2-1/2

[Event "Saint Louis Norm Congress-GM 2022"]
[Site "Saint Louis"]
[Date "2022.05.23"]
[Round "8.4"]
[White "Park, Evan"]
[Black "Schitco, Ivan"]
[Result "1-0"]
[ECO "B67"]
[WhiteElo "2431"]
[BlackElo "2484"]
[Annotator "TA"]
[PlyCount "227"]
[EventDate "2022.05.20"]
[EventType "tourn"]
[EventCountry "USA"]
[SourceTitle "playchess.com"]
[Source "ChessBase"]
[SourceQuality "1"]
[TimeControl "5400+30"]

{[%evp 16,227,52,21,30,26,25,23,41,22,16,17,9,12,36,23,51,57,50,42,52,41,68,2,2,-28,72,0,46,29,16,4,7,16,12,15,16,12,108,61,50,0,93,29,118,135,125,129,126,128,167,156,154,141,126,127,246,121,223,223,210,210,217,220,218,175,255,107,109,73,120,80,80,80,80,80,70,80,81,0,21,0,62,63,123,103,97,93,111,58,69,47,44,45,60,12,11,8,11,11,20,20,77,39,41,36,36,20,20,19,19,19,20,20,20,20,21,20,20,20,20,20,20,20,22,22,29,21,22,12,20,8,22,8,8,8,8,8,8,8,36,8,8,8,29,14,35,8,80,80,80,80,80,80,84,84,134,135,165,84,84,84,85,89,91,93,128,85,85,85,92,84,119,127,128,79,79,79,128,79,79,0,135,135,3421,1429,29964,29965,29973,29974,29976,29970,29969,29973,29970,29974,29970,29972,29971,29970,29976,29977,29977,29978,29978,29979,29979,29980,29979,29980,29982,29983,29983,29976]} 1. e4 {[%emt 0:00:03]} c5 {[%emt 0:00:07]} 2. Nf3 {[%emt 0:00:04]} d6 {[%emt 0:00:13]} 3. d4 {[%emt 0:00:42]} cxd4 {[%emt 0:00:16]} 4. Nxd4 {[%emt 0:00:03]} Nf6 {[%emt 0:00:08]} 5. Nc3 {[%emt 0:00:02]} Nc6 {[%emt 0:00:09]} 6. Bg5 {[%emt 0:00:03]} e6 {[%emt 0:00:30]} 7. Qd2 {[%emt 0:00:09]} a6 {[%emt 0:00:30]} 8. O-O-O {[%emt 0:00:08]} Bd7 {[%emt 0:00:27]} 9. Kb1 {[%emt 0:00:08]} Nxd4 {[%emt 0:00:32]} 10. Qxd4 {[%emt 0:00:14]} Be7 {[%emt 0:00:14]} 11. f3 {[%emt 0:00:50]} Qc7 {[%emt 0:00:51]} 12. Qd2 {[%emt 0:00:19]} b5 {[%emt 0:04:53]} 13. g4 {[%emt 0:01:58]} h5 {[%emt 0:06:31]} 14. gxh5 {[%emt 0:01:57]} Rxh5 {[%emt 0:02:12]} 15. Bd3 {[%emt 0:13:44]} Rb8 {[%emt 0:19:15][%cal Oh5g5]} (15... Rxg5 {is more complex.} 16. Qxg5 Nxe4 17. Qxg7 Nxc3+ 18. bxc3 Bf8) 16. h4 {[%emt 0:11:18]} a5 {[%emt 0:08:43]} 17. f4 {[%emt 0:06:04][%cal Oe4e5]} b4 {[%emt 0:02:38]} 18. Ne2 {[%emt 0:00:13]} a4 {[%emt 0:03:35]} 19. Ng3 {[%emt 0:01:55]} (19. f5 $14) 19... Rh8 $11 {[%emt 0:00:15]} 20. Rhe1 {[%emt 0:01:54]} e5 {[%emt 0:08:15]} (20... a3 $11) 21. Bf1 {[%emt 0:09:25]} (21. fxe5 $16 dxe5 22. Nf5 Bxf5 23. exf5) 21... Bg4 {[%emt 0:06:56]} (21... a3 $11) 22. Be2 $14 {[%emt 0:06:31]} Be6 {[%emt 0:02:11]} 23. fxe5 {[%emt 0:03:15]} dxe5 {[%emt 0:00:17]} 24. Nf5 {[%emt 0:01:02]} Bxf5 {[%emt 0:06:59]} 25. exf5 {[%emt 0:00:16]} Kf8 {[%emt 0:06:15]} 26. Bf3 {[%emt 0:02:04]} Ne8 {[%emt 0:00:58]} (26... b3 $11) 27. Qd5 {[%emt 0:07:57]} (27. Qg2 $1 $16) 27... f6 {[%emt 0:05:31]} 28. Bc1 {[%emt 0:03:50]} (28. Be3 $14) 28... Rd8 {[%emt 0:00:22]} (28... Nd6 $11) 29. Qe6 {[%emt 0:01:36]} (29. Qb5 $1 $16) 29... Rd6 {[%emt 0:00:08]} (29... Nd6 $1 $11) 30. Rxd6 $16 {[%emt 0:00:28]} Qxd6 {[%emt 0:00:05]} 31. Qc4 {[%emt 0:03:16]} Qc5 {[%emt 0:01:08]} 32. Qg4 {[%emt 0:02:06]} Qf2 {[%emt 0:04:43]} 33. Rh1 {[%emt 0:01:31] Hoping for h5.} b3 {[%emt 0:04:20]} 34. cxb3 {[%emt 0:02:36]} ({But not} 34. axb3 axb3 35. cxb3 Nd6 $16) 34... axb3 {[%emt 0:00:02]} 35. axb3 {[%emt 0:00:48]} Qb6 {[%emt 0:00:23]} (35... Nd6 $16) 36. Bd5 {[%emt 0:01:56]} (36. Rd1 $18) 36... Qf2 {[%emt 0:00:45]} (36... Qd4 $16 37. Qxd4 exd4) 37. h5 $1 $18 {[%emt 0:03:42]} ({Worse is} 37. Qg6 Nd6 $11) 37... Nd6 {[%emt 0:02:19]} 38. Be6 {[%emt 0:00:20]} Qd4 {[%emt 0:01:00]} 39. Qxd4 {[%emt 0:00:25]} exd4 {[%emt 0:00:01]} 40. Bf4 {[%emt 0:05:13]} d3 {[%emt 0:00:47]} (40... Nf7 {was worth a try.} 41. Rc1 Nd8) 41. Rh3 {[%emt 0:01:57]} (41. b4 $18 {and White stays clearly on top.}) 41... Ne4 {[%emt 0:00:39]} 42. Rxd3 {[%emt 0:03:09][%cal Ob3b4]} Rxh5 {[%emt 0:00:36]} (42... Nc5 $142 43. Rc3 Rxh5) 43. b4 {[%emt 0:01:26]} Rh4 {[%emt 0:00:13]} 44. Bc7 {[%emt 0:01:00]} Bxb4 {[%emt 0:01:27]} 45. Rd8+ {[%emt 0:00:08]} Ke7 {[%emt 0:00:01]} 46. Rd7+ $1 {[%emt 0:00:13]} Kf8 {[%emt 0:00:54]} 47. Rd8+ {[%emt 0:00:14]} (47. Rf7+ $1 $16 Kg8 48. Rxf6+ Kh7 49. Rg6) 47... Ke7 $11 {[%emt 0:00:02]} 48. Rd7+ {[%emt 0:00:04]} Kf8 {[%emt 0:00:02]} 49. Rf7+ {[%emt 0:00:25]} Kg8 {[%emt 0:02:59]} ({Better is} 49... Ke8 $1 $14) 50. Rxf6+ $1 $16 {[%emt 0:00:06]} Kh7 {[%emt 0:00:14]} 51. Rg6 {[%emt 0:00:20]} Bd6 {[%emt 0:00:49] Inhibits Be5.} 52. Bxd6 {[%emt 0:00:51]} ({White should try} 52. Bb6 $16) 52... Nxd6 {[%emt 0:00:02][%mdl 4096] Endgame KRB-KRN} 53. Rg2 {[%emt 0:01:54]} Kh6 {[%emt 0:00:35]} 54. Rd2 {[%emt 0:00:12]} Nb5 {[%emt 0:00:49]} 55. Rd8 {[%emt 0:01:19]} (55. Kc2 $14 {feels stronger.}) 55... Nd4 $11 {[%emt 0:00:42]} 56. Bd7 {[%emt 0:02:52]} Rf4 {[%emt 0:00:42]} 57. Rf8 {[%emt 0:01:12]} g5 {[%emt 0:02:13]} 58. f6 {[%emt 0:00:21]} g4 {[%emt 0:00:29] [#]} (58... Kh7 $11) 59. Bxg4 $1 {[%emt 0:01:28]} Kg6 {[%emt 0:00:30]} 60. f7 {[%emt 0:00:40][%cal Og4h5] Strongly threatening Bh5+!} Kg7 {[%emt 0:00:08]} 61. Rc8 {[%emt 0:00:16]} Kxf7 {[%emt 0:00:12]} 62. Bh5+ {[%emt 0:00:10]} Ke7 {[%emt 0:00:09]} 63. Ka2 {[%emt 0:00:25]} Kd7 {[%emt 0:00:25]} 64. Rc3 {[%emt 0:00:11]} Nb5 {[%emt 0:00:26]} 65. Rc5 {[%emt 0:00:11]} Nc7 {[%emt 0:00:55]} 66. Ka3 {[%emt 0:00:27]} Kd6 {[%emt 0:00:10]} 67. Rc1 {[%emt 0:00:36]} Nb5+ {[%emt 0:00:12]} 68. Ka2 {[%emt 0:00:03]} Nc7 {[%emt 0:00:34]} 69. Be2 {[%emt 0:00:12]} Nd5 {[%emt 0:00:35]} 70. Ka3 {[%emt 0:00:24]} Nb4 {[%emt 0:01:11]} 71. b3 {[%emt 0:00:27]} Nc6 {[%emt 0:00:10]} 72. Bb5 {[%emt 0:00:26]} Nd4 {[%emt 0:00:28]} 73. Ba4 {[%emt 0:00:43]} Ne6 {[%emt 0:00:30]} 74. b4 {[%emt 0:00:30]} Rf3+ {[%emt 0:00:10]} 75. Kb2 {[%emt 0:00:09]} Rf2+ {[%emt 0:00:20]} 76. Kb3 {[%emt 0:00:13]} Rf4 {[%emt 0:01:35]} 77. Bb5 {[%emt 0:01:12]} Rf8 {[%emt 0:00:36]} 78. Rc4 {[%emt 0:00:50]} Rb8 {[%emt 0:00:30]} 79. Ba4 {[%emt 0:00:11]} Kd5 {[%emt 0:00:44]} 80. Bc6+ {[%emt 0:00:12]} Kd6 {[%emt 0:00:09][%cal Oe6d4]} 81. b5 {[%emt 0:00:30]} Nc5+ {[%emt 0:00:45]} (81... Rf8 $1 $11 {remains equal.}) 82. Kb4 $16 {[%emt 0:00:12] Black must now prevent Rd4+.} Nd3+ {[%emt 0:00:09]} 83. Ka5 $1 {[%emt 0:00:18] Threatens to win with Rd4+.} Ne5 {[%emt 0:00:16]} 84. Rc1 {[%emt 0:00:18]} Rf8 {[%emt 0:00:35]} 85. Kb6 {[%emt 0:00:39]} Rb8+ {[%emt 0:00:11]} (85... Rf2 $142) 86. Ka7 {[%emt 0:00:14]} Rf8 {[%emt 0:00:21]} 87. Kb7 {[%emt 0:01:24]} (87. Rd1+ $1 $18 Ke7 88. Kb6) 87... Rf7+ {[%emt 0:01:20]} 88. Kb6 {[%emt 0:00:07]} Rf4 {[%emt 0:00:17]} 89. Rd1+ {[%emt 0:00:08]} Ke6 {[%emt 0:00:06]} 90. Bd5+ {[%emt 0:00:11]} Kd6 {[%emt 0:00:28]} 91. Bg8+ {[%emt 0:01:03]} Ke7 {[%emt 0:00:12]} 92. Kc7 {[%emt 0:00:09]} Rf2 {[%emt 0:00:59]} 93. Bd5 {[%emt 0:00:48] aiming for Rc1.} Rc2+ {[%emt 0:00:59]} 94. Bc6 {[%emt 0:00:08] And now Rd5 would win.} Nc4 {[%emt 0:00:16]} 95. Re1+ {[%emt 0:00:06]} (95. Rh1 $142) 95... Kf6 {[%emt 0:00:07]} 96. Re8 {[%emt 0:01:24]} Ne5 {[%emt 0:00:27]} (96... Na3 $142) 97. Kb7 {[%emt 0:00:30]} (97. Rf8+ $142 Ke6 98. Re8+ Kf6 99. Rh8) 97... Nc4 {[%emt 0:00:19]} 98. Kc7 {[%emt 0:02:02] Against Nd6} (98. Re1 $142) 98... Ne5 {[%emt 0:00:03]} 99. Rd8 {[%emt 0:01:14] Rd6+ would kill now.} Ke7 $2 {[%emt 0:00:53][%mdl 8192]} (99... Nc4 $16 100. Rd5 Na5) 100. Rd5 $1 $18 {[%emt 0:00:10]} Ke6 {[%emt 0:01:29]} 101. Rd6+ {[%emt 0:00:06]} Ke7 {[%emt 0:00:14]} 102. b6 {[%emt 0:00:29]} Nf7 {[%emt 0:00:52]} 103. Rd7+ {[%emt 0:00:09]} Ke6 {[%emt 0:00:01]} 104. Rd1 {[%emt 0:00:36]} ({Inferior is} 104. b7 Rxc6+ 105. Kxc6 Ne5+ 106. Kb6 Nxd7+ $11) 104... Ne5 {[%emt 0:00:13]} 105. Rd6+ {[%emt 0:00:08]} Ke7 {[%emt 0:00:16]} 106. b7 {[%emt 0:00:07]} Rb2 {[%emt 0:00:04]} 107. Rd1 {[%emt 0:00:48]} Nxc6 {[%emt 0:00:54]} 108. Kxc6 {[%emt 0:00:06] KR-KR} Rc2+ {[%emt 0:00:03]} 109. Kb6 {[%emt 0:00:05]} Rb2+ {[%emt 0:00:03]} 110. Ka7 {[%emt 0:00:07]} Ra2+ {[%emt 0:00:04] [#]} 111. Kb8 $1 {[%emt 0:00:09]} Ra3 {[%emt 0:00:35]} 112. Rd4 {[%emt 0:00:10]} Ra1 {[%emt 0:00:22]} 113. Kc7 {[%emt 0:00:05]} Rc1+ {[%emt 0:00:06] [#]} 114. Kb6 $1 {[%emt 0:00:04]} 1-0

[Event "Saint Louis Norm Congress-GM 2022"]
[Site "Saint Louis"]
[Date "2022.05.23"]
[Round "8.5"]
[White "Matviishen, Viktor"]
[Black "Kavutskiy, Konstantin"]
[Result "1-0"]
[ECO "E94"]
[WhiteElo "2517"]
[BlackElo "2407"]
[Annotator "TA"]
[PlyCount "153"]
[EventDate "2022.05.20"]
[EventType "tourn"]
[EventCountry "USA"]
[SourceTitle "playchess.com"]
[Source "ChessBase"]
[SourceQuality "1"]
[TimeControl "5400+30"]

{[%evp 22,153,96,67,75,64,90,62,85,85,93,81,93,85,85,85,92,67,76,0,0,-25,0,-13,-6,-62,-44,-48,-30,-73,-91,-31,-18,-34,-18,-58,-27,-28,-20,-21,-20,-14,0,-18,17,14,15,21,34,0,0,0,0,0,2,0,0,-33,-29,-83,-79,-73,-76,-72,-62,-57,-63,-74,-68,-80,-39,-38,-16,-82,-100,-83,0,0,0,0,0,0,0,17,597,553,1101,1082,868,859,683,624,12832,12832,12833,12830,4690,4690,987,868,12842,12843,12843,12843,12844,12844,12845,12844,12850,27999,27999,27999,27999,27999,27999,27999,27999,27999,27999,27999,27999,27999,27999,27999,27999,27999,27999,27999,27996,27999,27999,27999,27999,27999]} 1. d4 {[%emt 0:00:04]} Nf6 {[%emt 0:09:48]} 2. c4 {[%emt 0:00:05]} g6 {[%emt 0:00:04]} 3. Nc3 {[%emt 0:00:04]} Bg7 {[%emt 0:00:06]} 4. e4 {[%emt 0:00:05]} d6 {[%emt 0:00:05]} 5. Be2 {[%emt 0:00:06]} O-O {[%emt 0:00:50]} 6. Be3 {[%emt 0:00:05]} Na6 {[%emt 0:00:42]} 7. Nf3 {[%emt 0:00:09][%cal Bg1f3,Bf3e1,Be1c2][%mdl 32]} e5 {[%emt 0:00:24]} 8. O-O {[%emt 0:00:15]} c6 {[%emt 0:00:06]} 9. d5 {[%emt 0:00:08]} Ng4 {[%emt 0:00:09]} 10. Bg5 {[%emt 0:00:05]} f6 {[%emt 0:00:06]} 11. Bh4 {[%emt 0:00:04]} c5 {[%emt 0:00:06]} 12. Ne1 {[%emt 0:00:06]} Nh6 {[%emt 0:00:33] E94: King's Indian: Classical: 6 Be2 e5 7 0-0: Various Black 7th moves.} 13. Nc2 {[%emt 0:00:06] 13.f3 is setting a new trend.} Nf7 {[%emt 0:01:15] [#]} 14. Bg4 $146 {[%emt 0:00:23]} ({Predecessor:} 14. a3 b6 15. b4 Bd7 16. Rb1 Bh6 17. Bg4 Bg5 18. Bxd7 Qxd7 19. Bxg5 fxg5 20. Ne3 {1-0 (52) Korobov,A (2698)-Demchenko,A (2679) St Petersburg 2018}) 14... h5 {[%emt 0:04:01] White is slightly better.} 15. Bxc8 {[%emt 0:00:20] White is more active.} Qxc8 {[%emt 0:00:33]} 16. h3 {[%emt 0:14:39]} Qd8 {[%emt 0:09:32]} 17. Rb1 {[%emt 0:08:46]} Bh6 {[%emt 0:02:28]} 18. a3 {[%emt 0:04:14]} Kg7 {[%emt 0:01:24]} 19. b4 {[%emt 0:01:19]} Qe7 {[%emt 0:07:51]} 20. bxc5 {[%emt 0:17:31]} (20. b5 $16 Nb8 21. Qd3) 20... Nxc5 $11 {[%emt 0:00:40]} 21. Ne1 {[%emt 0:00:07]} Rac8 {[%emt 0:05:11]} 22. Nd3 {[%emt 0:00:12]} Bg5 {[%emt 0:09:03]} 23. Bxg5 {[%emt 0:04:54]} (23. Bg3 $11) 23... fxg5 $15 {[%emt 0:01:06]} 24. Nxc5 {[%emt 0:01:55]} Rxc5 {[%emt 0:00:08]} 25. Qe2 {[%emt 0:12:13]} Rfc8 {[%emt 0:02:44]} 26. Rb4 {[%emt 0:00:16]} b6 {[%emt 0:01:44]} 27. Rfb1 {[%emt 0:02:08]} Qd7 {[%emt 0:01:37]} (27... g4 {looks sharper.} 28. hxg4 Qh4 29. gxh5 Rh8) 28. Nd1 {[%emt 0:00:54][%cal Bc3d1,Bd1e3,Be3f1,Bf1d2,Bd2b3][%mdl 32]} Nd8 {[%emt 0:03:33]} (28... g4 $5 {[%cal Rg4h3]} 29. hxg4 Qxg4 $11) 29. R1b3 {[%emt 0:03:45]} Nb7 {[%emt 0:00:36]} 30. Rg3 {[%emt 0:00:13]} Qe7 {[%emt 0:00:28]} 31. Ne3 {[%emt 0:00:51][%cal Oe3f5] Black must now prevent Nf5+!} Qf6 {[%emt 0:05:39] Prevents Nf5+.} 32. Nf1 {[%emt 0:03:40]} Nd8 {[%emt 0:04:07]} 33. Nd2 {[%emt 0:00:04]} Nf7 {[%emt 0:00:14]} 34. a4 {[%emt 0:00:06]} Nh6 {[%emt 0:03:27]} 35. Nb3 {[%emt 0:05:15]} R5c7 {[%emt 0:00:07]} 36. a5 {[%emt 0:00:03]} g4 $1 {[%emt 0:00:23]} 37. axb6 {[%emt 0:00:04]} axb6 {[%emt 0:00:05]} 38. Nd2 {[%emt 0:00:27]} Ra8 {[%emt 0:02:51]} 39. Rxb6 {[%emt 0:00:17]} Ra2 {[%emt 0:00:28]} 40. h4 {[%emt 0:06:37] Inhibits Qg5.} (40. Qe1 $11) 40... Qxh4 {[%emt 0:05:55] ...Qg5 is the strong threat.} 41. Rgb3 {[%emt 0:04:26]} Qg5 {[%emt 0:02:59]} 42. Rb2 {[%emt 0:00:06]} Rxb2 {[%emt 0:00:25]} 43. Rxb2 {[%emt 0:00:01]} g3 {[%emt 0:00:10] And now ...gxf2+ would win.} 44. fxg3 {[%emt 0:01:11]} Qxg3 {[%emt 0:01:19]} 45. Rb3 {[%emt 0:00:07]} Qg5 {[%emt 0:00:32]} 46. Qe3 {[%emt 0:01:05]} Qe7 {[%emt 0:01:19]} 47. g3 {[%emt 0:03:27]} (47. Qb6 $11 {remains equal.}) 47... Ng4 $17 {[%emt 0:01:33]} 48. Qb6 {[%emt 0:02:31]} Kh6 {[%emt 0:00:32]} (48... Qf7 $17 {White should prevent ...Ra7.} 49. Rb1 Rd7) 49. Qb8 $1 $11 {[%emt 0:00:40]} Qg7 {[%emt 0:05:10]} 50. Rf3 {[%emt 0:02:50]} (50. Rb6 $2 Qf6 $1 $19) 50... Ra7 {[%emt 0:05:24]} 51. Qxd6 {[%emt 0:00:38]} Ra1+ {[%emt 0:00:18]} ({But not} 51... Ra2 52. Nf1 Ra8 53. Qb6 $14) 52. Nf1 {[%emt 0:00:01] aiming for c5.} Qa7+ {[%emt 0:01:42][%mdl 8192] Loses the game.} (52... Ra8 $1 $11) 53. c5 $18 {[%emt 0:00:01] Hoping for Qf8+.} Rc1 {[%emt 0:00:22]} 54. Qf8+ {[%emt 0:01:12]} Kg5 {[%emt 0:00:09]} 55. d6 {[%emt 0:03:54] Threatens to win with Qe7+.} Qxc5+ {[%emt 0:04:48] [#]} 56. Kh1 $1 {[%emt 0:00:06][%cal Of3f5] White wants to mate with Rf5+!} Ne3 {[%emt 0:00:09] Prevents Rf5+.} 57. d7 {[%emt 0:01:24]} Qxf8 {[%emt 0:00:40]} 58. Rxf8 {[%emt 0:00:00][%mdl 4096] Endgame KRN-KRN} Rd1 {[%emt 0:00:10]} 59. d8=Q+ {[%emt 0:00:07]} Rxd8 {[%emt 0:00:05]} 60. Rxd8 {[%emt 0:00:05]} Nxf1 {[%emt 0:00:04] [#] KR-KN} 61. Rd3 $1 {[%emt 0:02:51]} ({Less strong is} 61. Kg2 Ne3+ 62. Kf2 Nc4 $16) 61... h4 {[%emt 0:00:07]} 62. gxh4+ {[%emt 0:00:05]} Kf4 {[%emt 0:00:14]} 63. Rd6 {[%emt 0:00:03]} Ng3+ {[%emt 0:00:57]} 64. Kg2 {[%emt 0:00:14]} Nxe4 {[%emt 0:00:30]} 65. Rxg6 {[%emt 0:00:03]} Kf5 {[%emt 0:00:37] White mates.} 66. Rg7 {[%emt 0:00:22]} Nf6 {[%emt 0:00:50]} 67. Kf3 {[%emt 0:01:40]} e4+ {[%emt 0:00:18]} 68. Ke3 {[%emt 0:00:03]} Nd5+ {[%emt 0:00:15]} 69. Kd4 {[%emt 0:00:33]} Nf6 {[%emt 0:00:10]} 70. Rg1 {[%emt 0:01:35]} Ke6 {[%emt 0:01:12]} 71. Rg5 {[%emt 0:00:12]} Kf7 {[%emt 0:00:44]} 72. h5 {[%emt 0:00:32][%cal Bh4h5,Bh5h6,Bh6h7][%mdl 32]} Ke6 {[%emt 0:00:45]} 73. h6 {[%emt 0:00:04]} Kf7 {[%emt 0:00:05]} 74. Ke5 {[%emt 0:00:49]} Nd7+ {[%emt 0:00:49]} 75. Kf5 {[%emt 0:00:24]} e3 {[%emt 0:00:56]} 76. Rg7+ {[%emt 0:00:05]} Ke8 {[%emt 0:00:05]} 77. h7 {[%emt 0:00:12] Weighted Error Value: White=0.15 (very precise) /Black=0.26 (precise)} 1-0